[Event "CHI-ch Absoluto 2020"]
[Site "Las Condes"]
[Date "2020.02.15"]
[Round "5.1"]
[White "Gomez Barrera, Gonzalo Andres"]
[Black "Romero Araya, Diego Alonso"]
[Result "0-1"]
[ECO "B14"]
[WhiteElo "2040"]
[BlackElo "2252"]
[Annotator "ChessBase"]
[PlyCount "60"]
[EventDate "2020.02.11"]
[EventType "tourn"]
[EventCountry "CHI"]
[SourceTitle "playchess.com"]
[Source "ChessBase"]
[SourceQuality "1"]
[TimeControl "5400+30"]

1. e4 {[%emt 0:00:00]} c6 {[%emt 0:04:01]} 2. d4 {[%emt 0:00:00]} d5 {[%emt 0:00:10]} 3. exd5 {[%emt 0:00:00]} cxd5 {[%emt 0:00:07]} 4. c4 {[%emt 0:00:00]} Nf6 {[%emt 0:00:41]} 5. Nc3 {[%emt 0:00:07]} g6 {[%emt 0:01:34]} 6. Bg5 {[%emt 0:20:13]} Bg7 {[%emt 0:04:41]} 7. Bxf6 {[%emt 0:04:41]} Bxf6 {[%emt 0:00:11]} 8. Nxd5 {[%emt 0:03:02]} Bg7 {[%emt 0:02:29]} 9. Nc3 {[%emt 0:07:08]} Qxd4 {[%emt 0:11:07]} 10. Qxd4 {[%emt 0:06:45]} Bxd4 {[%emt 0:00:09]} 11. Nge2 {[%emt 0:05:25]} Be5 {[%emt 0:01:45]} 12. g3 {[%emt 0:01:30]} Be6 {[%emt 0:09:07]} 13. Bg2 {[%emt 0:05:28]} Nc6 {[%emt 0:00:15]} 14. b3 {[%emt 0:08:34]} O-O-O {[%emt 0:00:59]} 15. Rc1 {[%emt 0:02:08]} Nb4 {[%emt 0:11:24]} 16. O-O {[%emt 0:00:47]} Rd2 {[%emt 0:00:23]} 17. a3 {[%emt 0:08:42]} Nc2 {[%emt 0:12:29]} 18. Rfd1 {[%emt 0:10:13]} Rhd8 {[%emt 0:01:32]} 19. Rxd2 {[%emt 0:07:03]} Rxd2 {[%emt 0:00:08]} 20. Kf1 {[%emt 0:02:39]} Bg4 {[%emt 0:12:24]} 21. f3 {[%emt 0:04:48]} Bf5 {[%emt 0:00:31]} 22. Nb1 {[%emt 0:01:16]} Rd7 {[%emt 0:10:30]} 23. Kf2 {[%emt 0:00:29]} Bb2 {[%emt 0:00:29]} 24. Rf1 {[%emt 0:00:25]} Nxa3 {[%emt 0:00:29]} 25. Nxa3 {[%emt 0:00:33]} Bxa3 {[%emt 0:00:09]} 26. Ra1 {[%emt 0:00:25]} Bc5+ {[%emt 0:00:26]} 27. Kf1 {[%emt 0:00:20]} Rd2 {[%emt 0:00:47]} 28. g4 {[%emt 0:00:46]} Bd3 {[%emt 0:00:14]} 29. Re1 {[%emt 0:00:07]} Rb2 {[%emt 0:00:08]} 30. f4 {[%emt 0:00:21]} Bb4 {[%emt 0:00:15]} 0-1

[Event "CHI-ch Absoluto 2020"]
[Site "Las Condes"]
[Date "2020.02.15"]
[Round "5.3"]
[White "Valenzuela Fuentealba, Luis"]
[Black "Gasic Merino, Franco Ignacio"]
[Result "1/2-1/2"]
[ECO "A38"]
[WhiteElo "2450"]
[BlackElo "2168"]
[Annotator "ChessBase"]
[PlyCount "57"]
[EventDate "2020.02.11"]
[EventType "tourn"]
[EventCountry "CHI"]
[SourceTitle "playchess.com"]
[Source "ChessBase"]
[SourceQuality "1"]
[TimeControl "5400+30"]

1. d4 {[%emt 0:11:05]} Nf6 {[%emt 0:00:00]} 2. c4 {[%emt 0:00:13]} g6 {[%emt 0:00:00]} 3. Nf3 {[%emt 0:00:16]} Bg7 {[%emt 0:00:00]} 4. g3 {[%emt 0:00:07]} c5 {[%emt 0:00:00]} 5. Bg2 {[%emt 0:00:47]} cxd4 {[%emt 0:00:07]} 6. Nxd4 {[%emt 0:00:11]} O-O {[%emt 0:00:09]} 7. Nc3 {[%emt 0:01:31]} Nc6 {[%emt 0:00:08]} 8. Nc2 {[%emt 0:03:55]} Qa5 {[%emt 0:00:52]} 9. O-O {[%emt 0:07:06]} d6 {[%emt 0:00:03]} 10. Bd2 {[%emt 0:16:58]} Qh5 {[%emt 0:00:08]} 11. e4 {[%emt 0:00:13]} Ng4 {[%emt 0:00:05]} 12. h3 {[%emt 0:00:48]} Nge5 {[%emt 0:00:06]} 13. Ne3 {[%emt 0:19:43]} Bxh3 {[%emt 0:00:37]} 14. Qxh5 {[%emt 0:00:25]} gxh5 {[%emt 0:00:01]} 15. f4 {[%emt 0:00:19]} Bxg2 {[%emt 0:00:05]} 16. Kxg2 {[%emt 0:00:04]} Ng4 {[%emt 0:00:10]} 17. Nf5 {[%emt 0:03:23]} Bxc3 {[%emt 0:00:05]} 18. Bxc3 {[%emt 0:07:48]} e6 {[%emt 0:00:26]} 19. Nxd6 {[%emt 0:00:08]} Ne3+ {[%emt 0:00:05]} 20. Kf2 {[%emt 0:00:05]} Nxf1 {[%emt 0:00:04]} 21. Rxf1 {[%emt 0:00:51]} b6 {[%emt 0:01:27]} 22. Bf6 {[%emt 0:03:46]} h6 {[%emt 0:00:28]} 23. Rh1 Kh7 {[%emt 0:00:03]} 24. f5 {[%emt 0:00:03]} Rg8 {[%emt 0:00:04]} 25. Rxh5 {[%emt 0:00:02]} exf5 26. exf5 Rg6 {[%emt 0:00:01]} 27. fxg6+ {[%emt 0:00:07]} Kxg6 {[%emt 0:00:02]} 28. Rf5 Kh7 {[%emt 0:00:06]} 29. Rh5 {[%emt 0:00:02]} 1/2-1/2

[Event "CHI-ch Absoluto 2020"]
[Site "Las Condes"]
[Date "2020.02.15"]
[Round "5.4"]
[White "Vergara Jofre, Felipe Andres"]
[Black "Aguirre Contreras, Cristian Rodrigo"]
[Result "0-1"]
[ECO "B06"]
[WhiteElo "2217"]
[BlackElo "2187"]
[Annotator "ChessBase"]
[PlyCount "74"]
[EventDate "2020.02.11"]
[EventType "tourn"]
[EventCountry "CHI"]
[SourceTitle "playchess.com"]
[Source "ChessBase"]
[SourceQuality "1"]
[TimeControl "5400+30"]

1. e4 {[%emt 0:00:00]} g6 {[%emt 0:00:00]} 2. d4 {[%emt 0:00:53]} Bg7 {[%emt 0:00:00]} 3. Nf3 {[%emt 0:00:07]} d6 {[%emt 0:01:28]} 4. Bc4 {[%emt 0:01:10]} c6 {[%emt 0:00:39]} 5. h3 {[%emt 0:00:56]} Nf6 {[%emt 0:01:05]} 6. e5 {[%emt 0:00:38]} dxe5 {[%emt 0:00:43]} 7. Nxe5 {[%emt 0:00:07]} O-O {[%emt 0:00:18]} 8. O-O {[%emt 0:00:23]} Nbd7 {[%emt 0:00:25]} 9. Nc3 {[%emt 0:21:25]} Nb6 {[%emt 0:05:34]} 10. Bb3 {[%emt 0:00:49]} a5 {[%emt 0:00:01]} 11. a4 {[%emt 0:00:31]} Nbd5 {[%emt 0:00:55]} 12. Ne2 {[%emt 0:08:45]} Be6 {[%emt 0:13:02]} 13. c4 {[%emt 0:09:40]} Nb4 {[%emt 0:02:14]} 14. Be3 {[%emt 0:08:49]} b6 {[%emt 0:07:32]} 15. Nf4 {[%emt 0:10:21]} Bf5 {[%emt 0:01:57]} 16. g4 {[%emt 0:04:16]} Bc8 {[%emt 0:02:04]} 17. Qf3 {[%emt 0:00:10]} Bb7 {[%emt 0:10:55]} 18. Rfd1 {[%emt 0:10:52]} Qc7 {[%emt 0:02:09]} 19. c5 {[%emt 0:02:03]} bxc5 {[%emt 0:02:14]} 20. Nxf7 {[%emt 0:07:39]} Nfd5 {[%emt 0:02:35]} 21. Ne6 {[%emt 0:01:14]} Qd7 {[%emt 0:00:16]} 22. Nxf8 {[%emt 0:05:06]} Rxf8 {[%emt 0:00:08]} 23. dxc5 {[%emt 0:00:40]} Rxf7 {[%emt 0:01:46]} 24. Qg3 {[%emt 0:00:28]} e5 {[%emt 0:05:08]} 25. Rd2 {[%emt 0:01:21]} Qe7 {[%emt 0:01:18]} 26. Re1 {[%emt 0:00:28]} Ba6 {[%emt 0:01:03]} 27. Bd4 {[%emt 0:01:56]} e4 {[%emt 0:00:33]} 28. Bxg7 {[%emt 0:01:49]} Kxg7 {[%emt 0:00:12]} 29. Rd4 {[%emt 0:00:53]} Bd3 {[%emt 0:05:01]} 30. Qd6 {[%emt 0:00:49]} Qh4 {[%emt 0:06:35]} 31. Qe5+ {[%emt 0:00:01]} Kh6 {[%emt 0:00:13]} 32. g5+ {[%emt 0:00:43]} Qxg5+ {[%emt 0:00:52]} 33. Qxg5+ {[%emt 0:00:01]} Kxg5 {[%emt 0:00:08]} 34. Bxd5 {[%emt 0:01:17]} cxd5 {[%emt 0:00:53]} 35. c6 {[%emt 0:00:09]} Kf4 {[%emt 0:01:39]} 36. Rc1 {[%emt 0:00:40]} Rc7 {[%emt 0:00:06]} 37. Rc5 {[%emt 0:00:49]} Ke5 {[%emt 0:01:59]} 0-1

[Event "CHI-ch Absoluto 2020"]
[Site "Las Condes"]
[Date "2020.02.15"]
[Round "5.5"]
[White "Torres Bravo, Cristobal Renato"]
[Black "Garcia Cardenas, Pablo"]
[Result "0-1"]
[ECO "A13"]
[WhiteElo "2372"]
[BlackElo "2424"]
[Annotator "ChessBase"]
[PlyCount "128"]
[EventDate "2020.02.11"]
[EventType "tourn"]
[EventCountry "CHI"]
[SourceTitle "playchess.com"]
[Source "ChessBase"]
[SourceQuality "1"]
[TimeControl "5400+30"]

1. Nf3 {[%emt 0:05:45]} d5 {[%emt 0:00:00]} 2. c4 {[%emt 0:00:28]} e6 {[%emt 0:00:00]} 3. e3 {[%emt 0:00:13]} Nf6 {[%emt 0:00:00]} 4. b3 {[%emt 0:00:09]} c5 {[%emt 0:00:35]} 5. cxd5 {[%emt 0:01:12]} exd5 {[%emt 0:00:02]} 6. d4 {[%emt 0:00:51]} Nc6 {[%emt 0:00:44]} 7. Be2 {[%emt 0:01:05]} cxd4 {[%emt 0:02:56]} 8. Nxd4 {[%emt 0:00:40]} Bb4+ {[%emt 0:01:02]} 9. Bd2 {[%emt 0:00:30]} Bxd2+ {[%emt 0:02:13]} 10. Nxd2 {[%emt 0:01:43]} Nxd4 {[%emt 0:05:36]} 11. exd4 {[%emt 0:00:04]} O-O {[%emt 0:02:29]} 12. O-O {[%emt 0:00:09]} Bf5 {[%emt 0:00:25]} 13. Nf3 {[%emt 0:00:46]} Rc8 {[%emt 0:00:37]} 14. Ne5 {[%emt 0:15:09]} Qa5 {[%emt 0:15:48]} 15. Bd3 {[%emt 0:16:59]} Bxd3 {[%emt 0:03:03]} 16. Qxd3 {[%emt 0:02:04]} Rc3 {[%emt 0:02:23]} 17. Qf5 {[%emt 0:01:59]} Rfc8 {[%emt 0:00:29]} 18. g4 {[%emt 0:03:09]} Qc7 {[%emt 0:01:50]} 19. g5 {[%emt 0:06:08]} Ne4 {[%emt 0:02:40]} 20. f3 {[%emt 0:05:04]} Nd6 {[%emt 0:10:28]} 21. Qf4 {[%emt 0:01:05]} Rc2 {[%emt 0:06:37]} 22. Kh1 {[%emt 0:04:27]} Qe7 {[%emt 0:09:20]} 23. Rae1 {[%emt 0:04:01]} Qe6 {[%emt 0:01:19]} 24. Ng4 {[%emt 0:12:38]} Re2 {[%emt 0:00:09]} 25. Rxe2 {[%emt 0:00:30]} Qxe2 {[%emt 0:00:03]} 26. Rf2 {[%emt 0:00:13]} Qe6 {[%emt 0:04:27]} 27. Qe5 {[%emt 0:04:54]} Nf5 {[%emt 0:01:09]} 28. Qf4 {[%emt 0:03:59]} Nh4 {[%emt 0:13:23]} 29. Nh6+ {[%emt 0:04:00]} gxh6 {[%emt 0:00:30]} 30. Qxh4 {[%emt 0:00:04]} Qe1+ {[%emt 0:03:56]} 31. Kg2 {[%emt 0:00:07]} Rc6 {[%emt 0:00:21]} 32. Qf4 {[%emt 0:01:26]} Rg6 {[%emt 0:00:11]} 33. h4 {[%emt 0:01:30]} hxg5 {[%emt 0:00:10]} 34. Qb8+ {[%emt 0:00:59]} Kg7 {[%emt 0:00:02]} 35. h5 {[%emt 0:00:42]} Rh6 {[%emt 0:00:57]} 36. Rc2 {[%emt 0:00:47]} Rxh5 {[%emt 0:03:49]} 37. Qe5+ {[%emt 0:00:05]} Qxe5 {[%emt 0:00:04]} 38. dxe5 {[%emt 0:00:03]} Rh6 {[%emt 0:00:18]} 39. Rd2 {[%emt 0:01:25]} Ra6 {[%emt 0:00:37]} 40. Kg3 {[%emt 0:00:34]} Ra5 {[%emt 0:02:32]} 41. Rd4 {[%emt 0:01:24]} Kg6 {[%emt 0:00:42]} 42. b4 {[%emt 0:00:40]} Rxa2 {[%emt 0:00:15]} 43. Rxd5 {[%emt 0:00:04]} Ra6 {[%emt 0:00:18]} 44. f4 {[%emt 0:01:34]} Ra3+ {[%emt 0:00:39]} 45. Kf2 {[%emt 0:00:11]} gxf4 {[%emt 0:00:01]} 46. Rd6+ {[%emt 0:00:13]} Kf5 {[%emt 0:00:14]} 47. Rf6+ {[%emt 0:00:04]} Kxe5 {[%emt 0:00:05]} 48. Rxf7 {[%emt 0:00:02]} b5 {[%emt 0:00:07]} 49. Rxh7 {[%emt 0:00:10]} Kd4 {[%emt 0:01:03]} 50. Rc7 {[%emt 0:00:17]} a5 {[%emt 0:05:05]} 51. bxa5 {[%emt 0:00:35]} Rxa5 {[%emt 0:00:32]} 52. Rb7 {[%emt 0:00:48]} Kc3 {[%emt 0:01:53]} 53. Rc7+ {[%emt 0:00:42]} Kb3 {[%emt 0:00:15]} 54. Kf3 {[%emt 0:00:33]} Ra1 {[%emt 0:00:24]} 55. Ke2 {[%emt 0:00:52]} f3+ {[%emt 0:00:49]} 56. Kf2 {[%emt 0:01:00]} Rd1 {[%emt 0:00:07]} 57. Kxf3 {[%emt 0:00:22]} Re1 {[%emt 0:00:06]} 58. Kf2 {[%emt 0:00:31]} Re5 {[%emt 0:00:12]} 59. Kf3 {[%emt 0:00:33]} b4 {[%emt 0:00:05]} 60. Kf2 {[%emt 0:00:04]} Kb2 {[%emt 0:00:04]} 61. Kf3 {[%emt 0:00:18]} b3 {[%emt 0:00:01]} 62. Kf2 {[%emt 0:00:11]} Kb1 {[%emt 0:00:09]} 63. Kf1 {[%emt 0:00:13]} b2 {[%emt 0:00:29]} 64. Kf2 {[%emt 0:00:10]} Rb5 {[%emt 0:00:46]} 0-1

[Event "CHI-ch Absoluto 2020"]
[Site "Las Condes"]
[Date "2020.02.20"]
[Round "11.1"]
[White "Vergara Jofre, Felipe Andres"]
[Black "Olivares Olivares, Claudio"]
[Result "0-1"]
[ECO "B85"]
[WhiteElo "2217"]
[BlackElo "2395"]
[Annotator "NA"]
[PlyCount "52"]
[EventDate "2020.02.11"]
[EventType "tourn"]
[EventCountry "CHI"]
[SourceTitle "playchess.com"]
[Source "ChessBase"]
[SourceQuality "1"]
[TimeControl "5400+30"]

1. e4 {[%emt 0:04:30]} c5 {[%emt 0:06:45]} 2. Nf3 {[%emt 0:00:01]} d6 {[%emt 0:00:17]} 3. d4 {[%emt 0:00:04]} cxd4 {[%emt 0:00:03]} 4. Nxd4 {[%emt 0:00:01]} Nf6 {[%emt 0:00:09]} 5. Nc3 {[%emt 0:00:02]} a6 {[%emt 0:00:08]} 6. Be2 {[%emt 0:00:03]} e6 {[%emt 0:00:06]} 7. O-O {[%emt 0:00:05]} Be7 {[%emt 0:00:04]} 8. f4 {[%emt 0:01:40]} Nc6 {[%emt 0:00:06]} 9. Be3 {[%emt 0:00:34]} Qc7 {[%emt 0:01:14]} 10. Qe1 {[%emt 0:06:43]} O-O {[%emt 0:00:09]} 11. Qg3 {[%emt 0:02:11]} Bd7 {[%emt 0:01:01]} 12. Rae1 $11 {[%emt 0:08:12]} Rac8 {[%emt 0:08:23]} 13. Kh1 {[%emt 0:05:11]} Kh8 {[%emt 0:00:45]} 14. a4 {[%emt 0:03:26]} Nb4 {[%emt 0:03:24]} 15. Bf3 {[%emt 0:16:36]} e5 {[%emt 0:02:20]} 16. fxe5 {[%emt 0:11:03]} dxe5 {[%emt 0:02:38]} 17. Nd5 {[%emt 0:07:56]} Nbxd5 {[%emt 0:05:57]} 18. exd5 {[%emt 0:00:03]} Bd6 {[%emt 0:07:07]} 19. Qg5 {[%emt 0:04:59]} exd4 {[%emt 0:07:01]} 20. Bxd4 {[%emt 0:00:01]} h6 {[%emt 0:01:16]} 21. Qh4 {[%emt 0:00:31]} Ng8 {[%emt 0:00:06]} 22. Bh5 {[%emt 0:03:21]} f6 {[%emt 0:03:08]} 23. Bg6 {[%emt 0:02:31]} Qc4 {[%emt 0:03:02]} 24. Bd3 {[%emt 0:02:10]} Qxd5 {[%emt 0:01:05]} 25. c4 {[%emt 0:00:06]} Qg5 {[%emt 0:00:40]} 26. Qe4 {[%emt 0:00:04]} f5 {[%emt 0:00:11]} 0-1

[Event "CHI-ch Absoluto 2020"]
[Site "Las Condes"]
[Date "2020.02.20"]
[Round "11.2"]
[White "Torres Bravo, Cristobal Renato"]
[Black "Gomez Barrera, Gonzalo Andres"]
[Result "0-1"]
[ECO "A13"]
[WhiteElo "2372"]
[BlackElo "2040"]
[Annotator "NA"]
[PlyCount "76"]
[EventDate "2020.02.11"]
[EventType "tourn"]
[EventCountry "CHI"]
[SourceTitle "playchess.com"]
[Source "ChessBase"]
[SourceQuality "1"]
[TimeControl "5400+30"]

1. c4 {[%emt 0:08:47]} e6 {[%emt 0:00:00]} 2. Nf3 {[%emt 0:01:02]} d5 {[%emt 0:00:08]} 3. g3 {[%emt 0:00:07]} Nf6 {[%emt 0:02:00]} 4. Bg2 {[%emt 0:00:05]} dxc4 {[%emt 0:09:43]} 5. Qa4+ {[%emt 0:01:03]} Qd7 {[%emt 0:11:09]} 6. Qxc4 {[%emt 0:00:07]} Qc6 {[%emt 0:00:05]} 7. b3 $14 {[%emt 0:01:12]} Qxc4 {[%emt 0:07:55]} 8. bxc4 {[%emt 0:00:11]} c6 {[%emt 0:03:27]} 9. O-O {[%emt 0:00:52]} Nbd7 {[%emt 0:00:38]} 10. d4 {[%emt 0:09:34]} Bd6 {[%emt 0:02:57]} 11. Bb2 {[%emt 0:01:27]} O-O {[%emt 0:00:28]} 12. Nbd2 {[%emt 0:00:34]} Re8 {[%emt 0:01:36]} 13. c5 {[%emt 0:03:50]} Bc7 {[%emt 0:01:14]} 14. Nc4 {[%emt 0:00:11]} e5 {[%emt 0:18:28]} 15. e3 {[%emt 0:09:20]} e4 {[%emt 0:07:19]} 16. Nfd2 {[%emt 0:02:04]} b6 {[%emt 0:02:59]} 17. Nb3 {[%emt 0:03:28]} Ba6 {[%emt 0:01:50]} 18. Rfc1 {[%emt 0:00:36]} Bxc4 {[%emt 0:00:13]} 19. Rxc4 {[%emt 0:00:04]} b5 {[%emt 0:00:09]} 20. Rcc1 {[%emt 0:01:29]} a5 {[%emt 0:06:12]} 21. a4 {[%emt 0:03:52]} b4 {[%emt 0:01:26]} 22. Nd2 {[%emt 0:00:14]} Rad8 {[%emt 0:07:17]} 23. Rc2 {[%emt 0:03:34]} Nb8 {[%emt 0:08:25]} 24. Re1 {[%emt 0:01:24]} Re7 {[%emt 0:01:52]} 25. f3 {[%emt 0:02:09]} exf3 {[%emt 0:00:05]} 26. Bxf3 {[%emt 0:00:03]} Nd5 {[%emt 0:01:28]} 27. e4 {[%emt 0:03:09]} f5 {[%emt 0:02:58]} 28. exd5 {[%emt 0:05:54]} Rxe1+ {[%emt 0:00:01]} 29. Kf2 {[%emt 0:00:08]} Rde8 {[%emt 0:00:03]} 30. d6 {[%emt 0:00:53]} Bd8 {[%emt 0:00:11]} 31. d5 {[%emt 0:00:07]} cxd5 {[%emt 0:00:09]} 32. Bxd5+ {[%emt 0:01:06]} Kh8 {[%emt 0:00:15]} 33. Nc4 {[%emt 0:01:42]} b3 {[%emt 0:00:45]} 34. Rd2 {[%emt 0:01:19]} Bg5 {[%emt 0:00:12]} 35. Rd3 {[%emt 0:00:47]} R8e2+ {[%emt 0:00:45]} 36. Kf3 {[%emt 0:00:07]} Rxh2 {[%emt 0:00:27]} 37. Ne3 {[%emt 0:07:42]} Bxe3 {[%emt 0:00:16]} 38. Rxe3 {[%emt 0:00:10]} Rf1# {[%emt 0:00:00]} 0-1

[Event "CHI-ch Absoluto 2020"]
[Site "Las Condes"]
[Date "2020.02.20"]
[Round "11.3"]
[White "Garcia Cardenas, Pablo"]
[Black "Reinuaba Escobar, Carlos"]
[Result "1-0"]
[ECO "E90"]
[WhiteElo "2424"]
[BlackElo "2184"]
[Annotator "NA"]
[PlyCount "83"]
[EventDate "2020.02.11"]
[EventType "tourn"]
[EventCountry "CHI"]
[SourceTitle "playchess.com"]
[Source "ChessBase"]
[SourceQuality "1"]
[TimeControl "5400+30"]

1. d4 {[%emt 0:13:12]} Nf6 {[%emt 0:11:01]} 2. c4 {[%emt 0:00:00]} g6 {[%emt 0:01:33]} 3. Nc3 {[%emt 0:00:00]} Bg7 {[%emt 0:00:56]} 4. e4 {[%emt 0:00:00]} d6 {[%emt 0:00:04]} 5. h3 {[%emt 0:00:00]} O-O {[%emt 0:00:21]} 6. Be3 {[%emt 0:00:00]} c5 {[%emt 0:01:57]} 7. Nf3 {[%emt 0:00:00]} cxd4 {[%emt 0:00:05]} 8. Nxd4 {[%emt 0:00:00]} b6 {[%emt 0:00:04]} 9. g3 {[%emt 0:00:00]} Bb7 {[%emt 0:00:16]} 10. Bg2 $1 {[%emt 0:00:00]} Nbd7 $14 {[%emt 0:10:39]} 11. O-O {[%emt 0:00:00]} Nc5 {[%emt 0:18:26]} 12. f3 {[%emt 0:00:00]} Rc8 {[%emt 0:00:42]} 13. b3 {[%emt 0:03:19]} a6 {[%emt 0:04:45]} 14. Qd2 {[%emt 0:00:12]} Re8 {[%emt 0:01:29]} 15. Rfd1 {[%emt 0:06:09]} Nfd7 {[%emt 0:09:37]} 16. Rac1 {[%emt 0:02:35]} h5 {[%emt 0:00:22]} 17. g4 {[%emt 0:00:09]} hxg4 {[%emt 0:00:26]} 18. hxg4 {[%emt 0:00:02]} Ne5 {[%emt 0:00:36]} 19. Qe2 {[%emt 0:14:33]} e6 {[%emt 0:05:08]} 20. f4 {[%emt 0:06:05]} Nc6 {[%emt 0:01:57]} 21. e5 {[%emt 0:06:32]} Nxd4 {[%emt 0:06:44]} 22. Rxd4 {[%emt 0:00:50]} Bxg2 {[%emt 0:01:18]} 23. Qxg2 {[%emt 0:00:46]} Qc7 {[%emt 0:08:54]} 24. Rxd6 {[%emt 0:03:01]} Bf8 {[%emt 0:00:09]} 25. Rd2 {[%emt 0:10:31]} Red8 {[%emt 0:00:21]} 26. Rcd1 {[%emt 0:00:14]} Rxd2 {[%emt 0:04:25]} 27. Qxd2 {[%emt 0:00:16]} Be7 {[%emt 0:03:07]} 28. g5 {[%emt 0:04:28]} Kg7 {[%emt 0:01:18]} 29. Qe2 {[%emt 0:07:50]} Rh8 {[%emt 0:02:44]} 30. Qf3 {[%emt 0:00:17]} Rd8 {[%emt 0:03:16]} 31. Bd4 {[%emt 0:03:37]} Rd7 {[%emt 0:02:00]} 32. Nd5 {[%emt 0:02:00]} Qb7 {[%emt 0:00:09]} 33. Kg2 {[%emt 0:00:27]} Kf8 {[%emt 0:00:56]} 34. Rh1 {[%emt 0:01:21]} Ke8 {[%emt 0:00:01]} 35. Rh8+ {[%emt 0:02:07]} Bf8 {[%emt 0:00:05]} 36. Nf6+ {[%emt 0:01:51]} Ke7 {[%emt 0:00:09]} 37. Bxc5+ {[%emt 0:02:13]} bxc5 {[%emt 0:00:10]} 38. Nxd7 {[%emt 0:00:07]} Qxd7 {[%emt 0:00:12]} 39. Kg3 {[%emt 0:00:31]} a5 {[%emt 0:01:02]} 40. a4 {[%emt 0:01:15]} Qd4 {[%emt 0:02:02]} 41. Qb7+ {[%emt 0:00:07]} Ke8 {[%emt 0:00:11]} 42. Qc8+ {[%emt 0:00:02]} 1-0

[Event "CHI-ch Absoluto 2020"]
[Site "Las Condes"]
[Date "2020.02.20"]
[Round "11.5"]
[White "Gasic Merino, Franco Ignacio"]
[Black "Salinas Herrera, Pablo Patricio"]
[Result "0-1"]
[ECO "B06"]
[WhiteElo "2168"]
[BlackElo "2502"]
[Annotator "RC"]
[PlyCount "74"]
[EventDate "2020.02.11"]
[EventType "tourn"]
[EventCountry "CHI"]
[SourceTitle "playchess.com"]
[Source "ChessBase"]
[SourceQuality "1"]
[TimeControl "5400+30"]

1. d4 {[%emt 0:00:00]} g6 {[%emt 0:01:20]} 2. g3 {[%emt 0:00:00]} Bg7 {[%emt 0:00:10]} 3. Bg2 {[%emt 0:00:00]} d6 {[%emt 0:00:06]} 4. e4 {[%emt 0:00:46]} c5 {[%emt 0:00:11]} 5. dxc5 {[%emt 0:03:41]} Qa5+ {[%emt 0:00:03]} 6. Nc3 {[%emt 0:00:11]} Qxc5 {[%emt 0:09:22]} 7. Nge2 {[%emt 0:00:16]} Nf6 {[%emt 0:00:07]} 8. O-O {[%emt 0:00:24]} O-O {[%emt 0:01:23]} 9. Be3 {[%emt 0:03:29]} Qa5 {[%emt 0:01:32]} 10. Qc1 {[%emt 0:02:27]} Re8 {[%emt 0:03:12]} 11. h3 {[%emt 0:04:01]} Nc6 {[%emt 0:00:20]} 12. Nf4 {[%emt 0:10:26]} Bd7 {[%emt 0:00:07]} 13. Bd2 {[%emt 0:02:09]} Rac8 {[%emt 0:04:50]} 14. Re1 {[%emt 0:06:31]} Ne5 {[%emt 0:01:20]} 15. Nd3 {[%emt 0:05:10]} Nc4 {[%emt 0:00:37]} 16. Bh6 {[%emt 0:00:23]} Bxh6 {[%emt 0:00:21]} 17. Qxh6 {[%emt 0:00:03]} Nxb2 {[%emt 0:00:08]} 18. Nd5 {[%emt 0:03:25]} Nxd3 {[%emt 0:00:10]} 19. Nxf6+ {[%emt 0:01:47]} exf6 {[%emt 0:00:04]} 20. cxd3 {[%emt 0:00:04]} Qg5 {[%emt 0:00:16]} 21. Qxg5 {[%emt 0:00:28]} fxg5 {[%emt 0:00:04]} 22. Reb1 {[%emt 0:02:31]} b5 {[%emt 0:01:22]} 23. Rb4 {[%emt 0:08:02]} Kf8 {[%emt 0:01:59]} 24. a4 {[%emt 0:06:37]} bxa4 {[%emt 0:00:04]} 25. Rb7 {[%emt 0:00:04]} Red8 {[%emt 0:01:10]} 26. Rxa7 {[%emt 0:00:02]} Ra8 {[%emt 0:00:07]} 27. Rc7 {[%emt 0:00:57]} Be8 {[%emt 0:01:52]} 28. Ra3 {[%emt 0:14:08]} Rdc8 {[%emt 0:01:30]} 29. Rb7 {[%emt 0:00:51]} Rab8 {[%emt 0:00:05]} 30. Ra7 {[%emt 0:00:44]} Rc1+ {[%emt 0:00:27]} 31. Kh2 {[%emt 0:00:17]} Rb2 {[%emt 0:00:34]} 32. d4 {[%emt 0:03:02]} Rxf2 {[%emt 0:00:17]} 33. g4 {[%emt 0:00:26]} Rd2 {[%emt 0:02:17]} 34. d5 {[%emt 0:00:58]} Rcc2 {[%emt 0:01:06]} 35. Rg3 {[%emt 0:00:13]} Bb5 {[%emt 0:00:19]} 36. e5 {[%emt 0:01:51]} dxe5 {[%emt 0:00:20]} 37. d6 {[%emt 0:00:14]} Bc6 {[%emt 0:00:09]} 0-1